bitfinex-derivatives/quotes_SOLF0:USTF0_20250117
["timestamp","ask_amount","ask_price","bid_price","bid_amount"]
[1737125438536,4.5772,218.49,218.39,4.5791]
[1737125438736,17.66615276,218.5,218.32,26.36295276]
[1737125438937,17.66615276,218.54,218.32,26.36295276]
[1737125439139,17.66615276,218.54,218.33,1.5444]
[1737125439342,4.5774,218.48,218.42,4.5783]
[1737125440439,17.66615276,218.54,218.44,4.5781]
[1737125440946,4.5766,218.51,218.36,17.66615276]
[1737125441134,17.66615276,218.54,218.36,17.66615276]
[1737125441539,4.5771,218.49,218.44,4.578]
[1737125441832,17.66615276,218.54,218.33,1.5444]
[1737125442037,17.66615276,218.5,218.33,1.5444]
[1737125442239,4.5773,218.48,218.33,1.5444]
[1737125442442,17.66615276,218.54,218.33,7.1244]
[1737125442638,17.66615276,218.5,218.33,7.1244]
[1737125443040,17.66615276,218.54,218.36,17.66615276]
[1737125443438,4.5769,218.5,218.36,17.66615276]
[1737125444046,4.5769,218.5,218.45,4.5777]
[1737125444244,17.66615276,218.54,218.36,17.66615276]
[1737125444538,17.66615276,218.54,218.45,4.5779]
[1737125445046,17.66615276,218.46,218.33,1.5444]
[1737125445940,17.66615276,218.5,218.33,1.5444]
[1737125446243,17.66615276,218.5,218.38,4.5793]
[1737125446445,17.66615276,218.5,218.33,1.5444]
[1737125446941,17.66615276,218.5,218.39,4.579]
[1737125448138,17.66615276,218.46,218.37,4.5794]
[1737125448338,17.66615276,218.5,218.33,1.5444]
[1737125448642,17.66615276,218.5,218.42,4.5784]
[1737125449145,4.5769,218.5,218.36,17.66615276]
[1737125449446,17.66615276,218.54,218.36,17.66615276]
[1737125449838,4.577,218.49,218.45,4.5779]
[1737125450244,17.66615276,218.54,218.38,5.56]
[1737125450443,4.577,218.5,218.46,4.5775]
[1737125450642,17.66615276,218.54,218.38,5.56]
[1737125450843,4.5778,218.46,218.41,4.5785]
[1737125451045,17.66615276,218.54,218.38,5.56]
[1737125451542,4.5766,218.52,218.48,4.5772]
[1737125452136,4.5766,218.51,218.47,4.5774]
[1737125452945,4.5766,218.51,218.48,4.5772]
[1737125453346,4.5766,218.51,218.38,5.56]
[1737125454041,4.5766,218.51,218.46,4.5776]
[1737125454246,17.66615276,218.54,218.46,4.5776]
[1737125454442,17.66615276,218.54,218.4,5.54]
[1737125454644,4.577,218.5,218.45,4.5778]
[1737125454948,17.66615276,218.54,218.33,1.5444]
[1737125455148,17.66615276,218.49,218.33,1.5444]
[1737125455447,4.5788,218.41,218.33,1.5444]
[1737125455748,4.5787,218.42,218.32,3.0968]
[1737125456043,17.66615276,218.41,218.3,4.581]
[1737125456245,17.66615276,218.41,218.25,1.4355]
[1737125456246,17.66615276,218.41,218.25,4.4306]
[1737125456443,4.58,218.36,218.25,4.4306]
[1737125456846,17.66615276,218.41,218.29,4.5812]
[1737125457046,17.66615276,218.41,218.25,4.4306]
[1737125457445,4.5797,218.37,218.25,4.4306]
[1737125457649,17.66615276,218.41,218.25,4.4306]
[1737125458448,17.66615276,218.46,218.34,4.5801]
[1737125458644,4.5784,218.43,218.25,4.4306]
[1737125458845,17.66615276,218.46,218.37,4.5795]
[1737125459047,17.66615276,218.46,218.28,17.66615276]
[1737125459442,17.66615276,218.46,218.33,4.5803]
[1737125459746,17.66615276,218.46,218.28,17.66615276]
[1737125460143,4.5787,218.42,218.36,4.5796]
[1737125460347,5.52,218.6,218.35,5.52]
[1737125460547,5.52,218.6,218.29,13.7]
[1737125460548,4.5771,218.49,218.36,27.64545276]
[1737125460746,17.66615276,218.54,218.36,27.64545276]
[1737125461148,4.5758,218.56,218.4,17.66615276]
[1737125461345,17.66615276,218.58,218.4,17.66615276]
[1737125461956,4.5762,218.53,218.48,4.5772]
[1737125462247,17.66615276,218.58,218.4,17.66615276]
[1737125462448,17.66615276,218.62,218.44,17.66615276]
[1737125462845,4.5746,218.61,218.49,4.577]
[1737125463046,17.66615276,218.62,218.47,5.52]
[1737125463246,17.66615276,218.62,218.48,1.422]
[1737125463450,17.66615276,218.68,218.48,2.868]
[1737125463650,17.66615276,218.63,218.49,1.5597]
[1737125464044,17.66615276,218.59,218.49,1.5597]
[1737125464449,17.66615276,218.59,218.44,5.52]
[1737125464655,17.66615276,218.59,218.47,4.5773]
[1737125464849,17.66615276,218.55,218.47,4.5773]
[1737125465043,17.66615276,218.55,218.41,4.4277]
[1737125465247,17.66615276,218.51,218.35,5.52]
[1737125465451,17.66615276,218.47,218.36,1.422]
[1737125466159,4.5774,218.48,218.41,4.5785]
[1737125466452,17.66615276,218.51,218.41,4.5785]
[1737125467254,17.66615276,218.51,218.36,1.422]
[1737125467454,17.66615276,218.57,218.36,1.422]
[1737125467651,4.5769,218.5,218.36,19.08815276]
[1737125467856,17.66615276,218.57,218.36,19.08815276]
[1737125468155,17.66615276,218.57,218.4,17.66615276]
[1737125468357,17.66615276,218.61,218.41,5.52]
[1737125468760,17.66615276,218.65,218.44,17.66615276]
[1737125468953,17.66615276,218.65,218.45,1.5597]
[1737125469152,4.5746,218.61,218.45,1.5597]
[1737125469348,17.66615276,218.65,218.53,4.5761]
[1737125469656,17.66615276,218.65,218.45,1.5597]
[1737125469657,17.66615276,218.65,218.51,5.52]
[1737125469955,17.66615276,218.61,218.51,5.52]
[1737125470652,17.66615276,218.57,218.45,1.5597]
[1737125470848,22.24175276,218.57,218.51,4.5766]
[1737125471053,17.66615276,218.61,218.51,4.5766]
[1737125471553,17.66615276,218.61,218.45,1.5597]
[1737125471745,17.66615276,218.61,218.52,4.5764]
[1737125471951,4.5751,218.59,218.52,4.5764]
[1737125472155,17.66615276,218.61,218.52,4.5764]
[1737125472354,17.66615276,218.61,218.49,4.5769]
[1737125472952,4.576,218.54,218.5,4.5768]
[1737125473155,4.576,218.54,218.45,1.5597]
[1737125473355,17.66615276,218.57,218.41,5.5]
[1737125474655,17.66615276,218.57,218.42,5.5]
[1737125475261,17.66615276,218.61,218.42,23.16615276]
[1737125475456,94.865,218.71,218.46,17.66615276]
[1737125475457,17.66615276,218.65,218.46,17.66615276]
[1737125475660,17.66615276,218.65,218.47,4.5178]
[1737125476866,4.5749,218.6,218.55,4.5756]
[1737125477070,17.66615276,218.61,218.47,4.5178]
[1737125477262,4.5766,218.52,218.46,4.5776]
[1737125477573,4.5766,218.52,218.42,5.5]
[1737125477574,17.66615276,218.53,218.42,5.5]
[1737125477761,4.5762,218.53,218.47,4.5773]
[1737125478068,4.5762,218.53,218.42,5.5]
[1737125478069,17.66615276,218.53,218.42,5.5]
[1737125478368,17.66615276,218.53,218.43,4.5783]
[1737125478565,17.66615276,218.53,218.39,1.5115]
[1737125478767,17.66615276,218.57,218.39,1.5115]
[1737125479665,17.66615276,218.61,218.42,17.66615276]
[1737125479869,4.5756,218.56,218.51,4.5766]
[1737125480063,5.5,218.64,218.39,1.5115]
[1737125480064,17.66615276,218.57,218.39,1.5115]
[1737125480265,17.66615276,218.61,218.42,17.66615276]
[1737125480465,4.5754,218.57,218.42,17.66615276]
[1737125480668,17.66615276,218.61,218.42,17.66615276]
[1737125481163,5.5,218.64,218.4,5.5]
[1737125481164,17.66615276,218.57,218.4,5.5]
[1737125481361,17.66615276,218.53,218.39,1.5115]
[1737125481566,4.5766,218.51,218.46,4.5776]
[1737125481767,17.66615276,218.57,218.41,17.66615276]
[1737125482967,17.66615276,218.57,218.39,1.5115]
[1737125484268,17.66615276,218.57,218.39,7.0115]
[1737125484570,17.66615276,218.53,218.43,4.5783]
[1737125484774,17.66615276,218.53,218.38,1.4657]
[1737125484967,4.5783,218.44,218.38,1.4657]
[1737125485167,17.66615276,218.49,218.35,5.5]
[1737125485374,17.66615276,218.49,218.34,6.913]
[1737125486070,17.66615276,218.49,218.37,4.5796]
[1737125486276,17.66615276,218.45,218.25,17.66615276]
[1737125486469,17.66615276,218.45,218.26,5.5]
[1737125486664,4.58,218.35,218.26,5.5]
[1737125486868,17.66615276,218.45,218.26,5.5]
[1737125487169,4.5785,218.43,218.33,4.5802]
[1737125487363,17.66615276,218.45,218.29,17.66615276]
[1737125487768,4.5795,218.38,218.33,4.5804]
[1737125488270,17.66615276,218.45,218.29,17.66615276]
[1737125488471,17.66615276,218.45,218.35,4.5799]
[1737125488968,17.66615276,218.45,218.26,5.5]
[1737125489574,17.66615276,218.45,218.37,4.5794]
[1737125490174,4.5787,218.41,218.37,4.5794]
[1737125490370,4.5787,218.41,218.26,5.5]
[1737125490575,4.5782,218.44,218.29,17.66615276]
[1737125491070,4.5778,218.46,218.33,17.66615276]
[1737125491373,17.66615276,218.53,218.37,17.66615276]
[1737125491574,17.66615276,218.57,218.43,4.5783]
[1737125491774,17.66615276,218.57,218.38,5.48]
[1737125492172,17.66615276,218.57,218.45,4.5779]
[1737125492374,17.66615276,218.57,218.41,17.66615276]
[1737125492777,4.5764,218.52,218.41,17.66615276]
[1737125493272,4.5764,218.52,218.47,4.5774]
[1737125493472,17.66615276,218.57,218.41,17.66615276]
[1737125493675,4.5762,218.53,218.41,17.66615276]
[1737125493867,4.5762,218.53,218.48,4.5773]
[1737125494068,17.66615276,218.57,218.41,17.66615276]
[1737125494273,17.66615276,218.63,218.45,17.66615276]
[1737125494477,17.66615276,218.63,218.46,4.5132]
[1737125494677,4.5754,218.57,218.46,4.5132]
[1737125495172,17.66615276,218.63,218.46,4.5132]
[1737125495377,17.66615276,218.63,218.51,4.5766]
[1737125495774,17.66615276,218.59,218.46,2.9696]
[1737125496076,17.66615276,218.55,218.4,5.48]
[1737125496377,17.66615276,218.59,218.46,4.5777]
[1737125496578,17.66615276,218.59,218.4,5.48]
[1737125497274,4.5755,218.57,218.4,5.48]
[1737125497479,17.66615276,218.63,218.45,17.66615276]
[1737125497668,17.66615276,218.63,218.51,4.5764]
[1737125497874,4.5756,218.56,218.51,4.5764]
[1737125498382,17.66615276,218.68,218.5,5.48]
[1737125498582,17.66615276,218.68,218.51,8.5043]
[1737125498781,17.66615276,218.68,218.6,4.5747]
[1737125498977,17.66615276,218.68,218.53,17.66615276]
[1737125499484,4.5737,218.65,218.53,17.66615276]
[1737125499775,28.73322829,218.7,218.52,28.73322829]
[1737125499981,28.73322829,218.7,218.59,4.5749]
[1737125500177,28.73322829,218.66,218.51,8.5043]
[1737125500373,28.73322829,218.66,218.57,4.5753]
[1737125500780,28.73322829,218.66,218.51,8.5043]
[1737125501081,28.73322829,218.7,218.6,4.5747]
[1737125501280,28.73322829,218.7,218.51,8.5043]
[1737125501482,28.73322829,218.7,218.56,4.5754]
[1737125501780,4.5738,218.65,218.51,8.5043]
[1737125502173,28.73322829,218.7,218.51,8.5043]
[1737125502378,4.5737,218.66,218.51,8.5043]
[1737125502679,28.73322829,218.7,218.51,8.5043]
[1737125503078,4.5733,218.67,218.51,8.5043]
[1737125503281,4.5733,218.67,218.62,4.5741]
[1737125503582,5.00767896,218.73,218.55,28.73322829]
[1737125504280,4.5737,218.66,218.55,28.73322829]
[1737125504782,4.5737,218.66,218.56,5.46]
[1737125504981,5.00767896,218.73,218.56,5.46]
[1737125505283,28.73322829,218.79,218.63,28.73322829]
[1737125505479,28.73322829,218.83,218.64,3.0316]
[1737125505675,0.72551569,218.82,218.67,28.73322829]
[1737125505881,61.39157779,218.87,218.68,5.46]
[1737125506079,4.5706,218.8,218.68,5.46]
[1737125506278,28.73322829,218.87,218.68,5.46]
[1737125506679,4.5715,218.76,218.68,5.46]
[1737125506881,28.73322829,218.82,218.68,5.46]
[1737125507081,28.73322829,218.82,218.68,10.033]
[1737125507285,28.73322829,218.82,218.68,5.46]
[1737125508095,28.73322829,218.82,218.69,4.5728]
[1737125508391,28.73322829,218.86,218.68,34.19322829]
[1737125508585,4.5708,218.79,218.74,4.5717]
[1737125508785,28.73322829,218.86,218.68,34.19322829]
[1737125509185,4.5705,218.81,218.75,4.5716]
[1737125509386,28.73322829,218.86,218.68,34.19322829]
[1737125510586,28.73322829,218.82,218.64,33.30072829]
[1737125510787,28.73322829,218.82,218.65,5.46]
[1737125511192,4.5719,218.74,218.68,4.5729]
[1737125511490,28.73322829,218.82,218.64,4.5675]
[1737125511800,4.5725,218.71,218.65,4.5735]
[1737125512493,4.5725,218.71,218.66,4.5734]
[1737125513399,28.73322829,218.74,218.56,28.73322829]
[1737125513595,28.73322829,218.79,218.6,28.73322829]
[1737125514393,4.5725,218.71,218.66,4.5735]
[1737125514593,28.73322829,218.79,218.6,28.73322829]
[1737125514795,28.73322829,218.74,218.57,5.44]
[1737125514994,28.73322829,218.79,218.64,4.5737]
[1737125515293,28.73322829,218.75,218.57,5.44]
[1737125515497,4.5729,218.69,218.64,4.5738]
[1737125515701,28.73322829,218.75,218.57,5.44]
[1737125516201,4.5725,218.71,218.57,5.44]
[1737125516393,28.73322829,218.75,218.57,5.44]
[1737125516600,4.573,218.69,218.64,4.5737]
[1737125516899,28.73322829,218.75,218.57,5.44]
[1737125517498,4.5727,218.7,218.57,5.44]
[1737125517999,28.73322829,218.79,218.6,28.73322829]
[1737125518193,56.90537488,218.89,218.64,28.73322829]
[1737125518399,4.5714,218.76,218.7,4.5725]
[1737125518594,28.73322829,218.82,218.7,4.5725]
[1737125518798,28.73322829,218.82,218.67,5.42]
[1737125519103,4.5714,218.76,218.71,4.5724]
[1737125519396,28.73322829,218.82,218.67,5.42]
[1737125519602,4.5708,218.79,218.67,5.42]
[1737125519800,28.73322829,218.86,218.67,5.42]
[1737125519996,4.5711,218.78,218.73,4.5719]
[1737125520194,28.73322829,218.82,218.67,5.42]
[1737125520696,28.73322829,218.86,218.68,28.73322829]
[1737125521503,4.5705,218.81,218.76,4.5714]
[1737125522203,4.5705,218.81,218.76,4.5713]
[1737125522394,51.48537488,218.89,218.71,17.65748771]
[1737125522595,17.65748771,218.9,218.71,17.65748771]
[1737125522803,4.5695,218.86,218.81,4.5703]
[1737125522998,17.65748771,218.9,218.71,17.65748771]
[1737125523505,17.65748771,218.94,218.75,17.65748771]
[1737125523703,17.65748771,218.94,218.76,1.4154]
[1737125523904,17.65748771,218.94,218.77,5.42]
[1737125524100,17.65748771,218.94,218.77,8.4514]
[1737125524398,17.65748771,218.98,218.79,17.65748771]
[1737125524803,17.65748771,218.98,218.77,8.4514]
[1737125524804,17.65748771,218.98,218.83,17.65748771]
[1737125524999,17.65748771,219.02,218.83,17.65748771]
[1737125525198,17.65748771,219.06,218.87,17.65748771]
[1737125525404,203.68855837,219.12,218.91,17.65748771]
[1737125525607,17.65748771,219.12,218.91,17.65748771]
[1737125525803,4.5657,219.04,218.97,4.567]
[1737125525998,17.65748771,219.12,218.97,4.567]
[1737125526201,17.65748771,219.08,218.97,4.567]
[1737125526401,4.5662,219.01,218.95,4.5673]
[1737125526605,17.65748771,219.03,218.88,4.4483]
[1737125526802,17.65748771,218.99,218.88,3.0314]
[1737125527001,4.5677,218.94,218.88,3.0314]
[1737125527205,17.65748771,218.99,218.88,3.0314]
[1737125527606,17.65748771,219.03,218.88,3.0314]
[1737125528201,17.65748771,219.07,218.94,4.5676]
[1737125529311,4.5668,218.98,218.93,4.5678]
[1737125529702,17.65748771,219.03,218.88,3.0314]
[1737125531706,4.5667,218.99,218.92,4.568]
[1737125531908,17.65748771,219.03,218.88,3.0314]
[1737125532103,17.65748771,219.12,218.88,3.0314]
[1737125532104,17.65748771,218.99,218.88,1.5004]
[1737125532406,17.65748771,218.95,218.83,3.0442]
[1737125532612,17.65748771,218.95,218.78,17.65748771]
[1737125532813,17.65748771,218.95,218.79,1.548]
[1737125534806,4.5689,218.88,218.83,4.5697]
[1737125535011,4.5689,218.88,218.79,1.548]
[1737125535411,4.5691,218.87,218.82,4.57]
[1737125535612,17.65748771,218.95,218.79,1.548]
[1737125535913,4.5691,218.88,218.83,4.5699]
[1737125536111,4.5691,218.88,218.79,1.548]
[1737125536709,17.65748771,218.91,218.79,1.548]
[1737125536916,17.65748771,218.91,218.75,5.38]
[1737125537412,17.65748771,218.95,218.77,17.65748771]
[1737125538913,17.65748771,219.03,218.81,17.65748771]
[1737125539112,17.65748771,219.03,218.82,1.4669]
[1737125539307,4.5673,218.96,218.88,4.5688]
[1737125539512,17.65748771,219.03,218.86,5.38]
[1737125540419,4.5672,218.97,218.92,4.5679]
[1737125540716,17.65748771,219.07,218.87,2.9339]
[1737125540916,17.65748771,219.07,218.89,17.65748771]
[1737125541718,17.65748771,219.07,218.87,2.9339]
[1737125542110,17.65748771,219.07,218.93,4.5678]
[1737125542315,17.65748771,219.07,218.87,2.9339]
[1737125542716,17.65748771,219.03,218.87,2.9339]
[1737125543311,4.5669,218.98,218.87,2.9339]
[1737125543911,4.5662,219.01,218.89,17.65748771]
[1737125544317,17.65748771,219.07,218.89,17.65748771]
[1737125544518,4.5663,219.01,218.89,17.65748771]
[1737125544822,17.65748771,219.07,218.89,17.65748771]
[1737125545021,4.5662,219.02,218.97,4.567]
[1737125545221,17.65748771,219.08,218.97,4.567]
[1737125545523,17.65748771,219.08,218.89,17.65748771]
[1737125545917,17.65748771,219.08,218.96,4.5672]
[1737125546119,17.65748771,219.08,218.89,17.65748771]
[1737125546421,17.65748771,219.04,218.87,2.9339]
[1737125546919,17.65748771,219.12,218.87,2.9339]
[1737125546920,4.5662,219.01,218.96,4.5671]
[1737125547116,17.65748771,219.08,218.89,17.65748771]
[1737125547821,17.65748771,219.08,218.95,4.5672]
[1737125548024,17.65748771,219.08,218.89,17.65748771]
[1737125549123,17.65748771,219.13,218.93,17.65748771]
[1737125549519,17.65748771,219.13,218.94,1.5305]
[1737125549724,4.5655,219.05,218.94,1.5305]
[1737125550027,17.65748771,219.13,218.94,1.5305]
[1737125550217,4.5649,219.08,218.99,4.5664]
[1737125550423,17.65748771,219.13,218.99,4.5664]
[1737125550616,17.65748771,219.11,218.94,1.5305]
[1737125550822,17.65748771,219.11,219.0,4.5664]
[1737125551018,17.65748771,219.11,218.94,1.5305]
[1737125551221,4.5656,219.05,219.0,4.5662]
[1737125551422,17.65748771,219.11,219.0,4.5662]
[1737125551725,4.5655,219.05,219.0,4.5662]
[1737125552125,4.5655,219.05,218.94,1.5305]
[1737125552325,4.5655,219.05,219.01,4.5661]
[1737125553824,17.65748771,219.15,218.96,22.97748771]
[1737125554125,4.99765434,219.16,219.0,17.65748771]
[1737125554322,4.99765434,219.16,219.01,2.8495]
[1737125554725,195.15207066,219.29,219.04,17.65748771]
[1737125555028,186.03107066,219.29,219.15,17.65748771]
[1737125555421,186.03107066,219.29,219.16,4.3913]
[1737125555824,17.65748771,219.36,219.16,4.3913]
[1737125556128,17.65748771,219.36,219.01,40.50968771]
[1737125556129,17.65748771,219.27,219.0,5.44]
[1737125556331,17.65748771,219.27,219.05,17.65748771]
[1737125556526,4.5627,219.18,219.12,4.5638]
[1737125556730,17.65748771,219.23,219.05,17.65748771]
[1737125556921,17.65748771,219.34,219.02,2.9738]
[1737125557223,17.65748771,219.33,219.13,17.65748771]
[1737125557421,17.65748771,219.37,219.17,17.65748771]
[1737125557619,17.65748771,219.41,219.21,17.65748771]
[1737125557833,17.65748771,219.45,219.25,17.65748771]
[1737125558028,17.65748771,219.45,219.26,7.0841]
[1737125558634,4.5579,219.41,219.32,4.5596]
[1737125558825,17.65748771,219.45,219.26,7.0841]
[1737125559332,17.65748771,219.41,219.26,7.0841]
[1737125559829,17.65748771,219.37,219.26,5.58]
[1737125560530,17.65748771,219.37,219.17,17.65748771]
[1737125560729,17.65748771,219.37,219.18,5.6]
[1737125560931,4.5593,219.34,219.23,4.5615]
[1737125561130,17.65748771,219.37,219.18,5.6]
[1737125561728,17.65748771,219.37,219.22,4.5617]
[1737125562326,17.65748771,219.33,219.22,4.5617]
[1737125562728,17.65748771,219.33,219.18,5.6]
[1737125563324,4.561,219.26,219.19,4.5623]
[1737125563529,17.65748771,219.33,219.18,5.6]
[1737125564420,4.559,219.36,219.24,4.5613]
[1737125564621,17.65748771,219.42,219.22,17.65748771]
[1737125565230,17.65748771,219.42,219.26,17.65748771]
[1737125565537,4.5579,219.42,219.35,4.5591]
[1737125565732,17.65748771,219.47,219.35,4.5591]
[1737125566127,17.65748771,219.47,219.28,5.58]
[1737125566826,4.5573,219.44,219.28,5.58]
[1737125567029,17.65748771,219.43,219.21,5.58]
[1737125567223,17.65748771,219.43,219.22,19.99927208]
[1737125567526,4.5588,219.37,219.22,19.16128771]
[1737125567724,17.65748771,219.43,219.22,19.16128771]
[1737125568031,4.5589,219.36,219.29,4.5602]
[1737125568735,17.65748771,219.39,219.22,19.16128771]
[1737125568929,4.5595,219.33,219.27,4.5607]
[1737125569232,17.65748771,219.39,219.22,1.5038]
[1737125569727,17.65748771,219.39,219.26,4.5608]
[1737125569932,17.65748771,219.35,219.22,1.5038]
[1737125570434,17.65748771,219.39,219.22,19.16128771]
[1737125570633,17.65748771,219.29,218.97,9.1338]
[1737125570835,17.65748771,219.21,219.07,0.83825828]
[1737125571032,17.65748771,219.21,219.03,5.7]
[1737125571339,5.7,219.32,219.06,17.65748771]
[1737125571340,17.65748771,219.25,219.06,17.65748771]
[1737125571532,17.65748771,219.25,219.07,0.8384852]
[1737125571737,17.65748771,219.25,219.06,17.65748771]
[1737125572131,4.5622,219.21,219.14,4.5634]
[1737125572332,17.65748771,219.25,219.06,17.65748771]
[1737125572529,17.65748771,219.25,219.07,0.83859931]
[1737125572735,4.5617,219.23,219.12,4.5638]
[1737125572935,4.5617,219.23,219.13,5.68]
[1737125573529,17.65748771,219.21,219.14,4.5633]
[1737125573736,17.65748771,219.21,219.1,5.68]
[1737125575136,17.65748771,219.25,219.1,5.68]
[1737125575537,17.65748771,219.25,219.11,1.4487]
[1737125575839,4.5617,219.23,219.17,4.5628]
[1737125576640,17.65748771,219.25,219.11,1.4487]
[1737125576835,4.5624,219.2,219.11,1.4487]
[1737125577241,17.65748771,219.25,219.11,1.4487]
[1737125577444,4.5621,219.21,219.11,1.4487]
[1737125577939,4.5627,219.18,219.11,1.4487]
[1737125578244,17.65748771,219.25,219.11,1.4487]
[1737125578641,4.5615,219.24,219.11,1.4487]
[1737125578847,17.65748771,219.29,219.11,1.4487]
[1737125579140,4.5617,219.23,219.11,1.4487]
[1737125579340,17.65748771,219.29,219.11,1.4487]
[1737125579742,4.5617,219.23,219.11,1.4487]
[1737125580446,4.5607,219.28,219.13,17.65748771]
[1737125580745,17.65748771,219.33,219.14,1.41]
[1737125581043,17.65748771,219.29,219.14,1.41]
[1737125581844,17.65748771,219.34,219.14,1.41]
[1737125582240,17.65748771,219.38,219.17,17.65748771]
[1737125582541,17.65748771,219.38,219.18,1.4214]
[1737125583139,4.5595,219.34,219.21,17.65748771]
[1737125583338,4.5595,219.34,219.22,7.1651]
[1737125583646,17.65748771,219.42,219.22,7.1651]
[1737125584750,4.5587,219.37,219.32,4.5597]
[1737125584945,17.65748771,219.42,219.22,7.1651]
[1737125585147,17.65748771,219.42,219.34,4.5593]
[1737125585148,4.5585,219.39,219.34,4.5593]
[1737125585449,17.65748771,219.42,219.25,17.65748771]
[1737125585652,17.65748771,219.42,219.26,1.4845]
[1737125585950,4.5583,219.39,219.34,4.5592]
[1737125586146,17.65748771,219.38,219.26,1.4845]
[1737125586347,4.5605,219.29,219.23,4.5616]
[1737125586751,17.65748771,219.34,219.22,1.5451]
[1737125586950,4.5601,219.3,219.25,4.5612]
[1737125587450,4.5601,219.3,219.2,5.62]
[1737125587451,17.65748771,219.3,219.2,5.62]
[1737125587852,17.65748771,219.26,219.1,5.6]
[1737125588452,17.65748771,219.3,219.1,5.6]
[1737125588653,17.65748771,219.3,219.13,17.65748771]
[1737125588845,17.65748771,219.34,219.13,17.65748771]
[1737125589045,17.65748771,219.34,219.17,17.65748771]
[1737125590255,4.5602,219.3,219.23,4.5614]
[1737125590453,17.65748771,219.34,219.12,17.65748771]
[1737125590651,17.65748771,219.34,219.13,0.83828824]
[1737125591047,17.65748771,219.38,219.13,0.83828824]
[1737125591258,17.65748771,219.38,219.19,17.65748771]
[1737125591457,17.65748771,219.38,219.28,4.5604]
[1737125591756,17.65748771,219.38,219.2,10.1228]
[1737125591946,4.5589,219.36,219.31,4.5599]
[1737125592154,194.0,219.53,219.23,17.65748771]
[1737125592155,17.65748771,219.42,219.23,17.65748771]
[1737125592854,4.5587,219.37,219.31,4.5599]
[1737125593154,17.65748771,219.42,219.23,17.65748771]
[1737125593655,184.02601143,219.54,219.39,17.65748771]
[1737125593858,184.02601143,219.54,219.43,17.65748771]
[1737125594059,184.02601143,219.54,219.52,4.5555]
[1737125594557,245.36801525,219.7,219.52,4.5555]
[1737125594558,184.02601143,219.65,219.52,4.5555]
[1737125594857,184.02601143,219.65,219.53,4.5553]
[1737125595158,184.02601143,219.65,219.47,17.65748771]
[1737125595455,17.65748771,219.53,219.35,17.65748771]
[1737125595759,17.65748771,219.66,219.47,17.65748771]
[1737125595963,17.65748771,219.66,219.52,4.5555]
[1737125596154,17.65748771,219.66,219.47,17.65748771]
[1737125596548,4.5542,219.59,219.52,4.5555]
[1737125596756,4.5542,219.59,219.47,17.65748771]
[1737125596757,17.65748771,219.66,219.47,17.65748771]
[1737125597252,17.65748771,219.66,219.49,4.556]
[1737125597459,17.65748771,219.66,219.47,17.65748771]
[1737125598357,17.65748771,219.66,219.51,4.5558]
[1737125598757,17.65748771,219.66,219.47,17.65748771]
[1737125598958,17.65748771,219.66,219.48,1.4702]
[1737125599262,4.5532,219.64,219.51,17.65748771]
[1737125599456,17.65748771,219.7,219.56,4.5546]
[1737125599754,17.65748771,219.7,219.51,17.65748771]
[1737125599959,17.65748771,219.7,219.57,4.5544]
[1737125600153,17.65748771,219.7,219.51,17.65748771]
[1737125600951,4.5526,219.67,219.51,17.65748771]
[1737125601157,17.65748771,219.7,219.59,4.5539]
[1737125601554,4.5529,219.65,219.59,4.5539]
[1737125602461,13.74,219.76,219.48,2.9779]
[1737125602462,17.65748771,219.62,219.48,2.9779]
[1737125602962,17.65748771,219.62,219.48,1.4702]
[1737125603155,17.65748771,219.62,219.45,23.37748771]
[1737125603356,17.65748771,219.58,219.45,5.72]
[1737125604060,4.5557,219.52,219.46,4.5568]
[1737125604562,4.5552,219.54,219.48,4.5564]
[1737125604858,17.65748771,219.66,219.45,5.72]
[1737125605054,17.65748771,219.62,219.45,5.72]
[1737125605260,4.555,219.55,219.45,5.72]
[1737125605856,17.65748771,219.58,219.45,5.72]
[1737125606762,4.5554,219.54,219.48,4.5563]
[1737125607160,17.65748771,219.58,219.48,4.5563]
[1737125608161,4.5554,219.53,219.48,4.5563]
[1737125608461,17.65748771,219.58,219.45,5.72]
[1737125609061,17.65748771,219.58,219.47,4.5566]